Workbook

Sheet Mittelhilfstabelle
A2: Stunde | B2: Wind | C2: Luftfeuchtigkeit | D2: Luftdruck | E2: Taupunkttemperatur | F2: Bewölkung | H2: Stunde | I2: Wind | J2: Luftfeuchtigkeit | K2: Luftdruck | L2: Taupunkttemperatur | M2: Bewölkung
A3: 00 | B3: 1 | C3: 95 | D3: 1020.8 | E3: 10 | F3: 8 | H3: 00 | I3: 0 | J3: 79 | K3: 1019.9 | L3: 9.4 | M3: 8
A4: 01 | B4: 1 | C4: 92 | D4: 1021.1 | E4: 9.2 | F4: 8 | H4: 01 | I4: 0 | J4: 76 | K4: 1019.8 | L4: 9.1 | M4: 8
A5: 02 | B5: 1 | C5: 91 | D5: 1021.4 | E5: 8.5 | F5: 8 | H5: 02 | I5: 1 | J5: 76 | K5: 1019.2 | L5: 9.3 | M5: 7
A6: 03 | B6: 1 | C6: 90 | D6: 1021.3 | E6: 7.6 | F6: 7 | H6: 03 | I6: 1 | J6: 76 | K6: 1019 | L6: 9.4 | M6: 7
A7: 04 | B7: 1 | C7: 90 | D7: 1021.6 | E7: 7.2 | F7: 7 | H7: 04 | I7: 1 | J7: 75 | K7: 1018.6 | L7: 9.5 | M7: 7
A8: 05 | B8: 1 | C8: 90 | D8: 1021.8 | E8: 7 | F8: 7 | H8: 05 | I8: 1 | J8: 75 | K8: 1018.4 | L8: 9.9 | M8: 7
A9: 06 | B9: 0 | C9: 88 | D9: 1022 | E9: 7.3 | F9: 6 | H9: 06 | I9: 1 | J9: 74 | K9: 1018.2 | L9: 10.8 | M9: 7
A10: 07 | B10: 1 | C10: 84 | D10: 1022 | E10: 7.5 | F10: 7 | H10: 07 | M10: 7
A11: 08 | B11: 1 | C11: 82 | D11: 1022.3 | E11: 7.9 | F11: 7 | H11: 08 | M11: 7
A12: 09 | B12: 1 | C12: 76 | D12: 1022.7 | E12: 7.6 | F12: 7 | H12: 09 | M12: 7
A13: 10 | B13: 1 | C13: 73 | D13: 1022.8 | E13: 7.3 | F13: 7 | H13: 10 | M13: 3
A14: 11 | B14: 1 | C14: 70 | D14: 1022.9 | E14: 6.8 | F14: 7 | H14: 11 | M14: 7
A15: 12 | B15: 1 | C15: 66 | D15: 1022.7 | E15: 7.2 | F15: 7 | H15: 12
A16: 13 | B16: 1 | C16: 63 | D16: 1022.4 | E16: 6.7 | F16: 7 | H16: 13
A17: 14 | B17: 1 | C17: 60 | D17: 1022.1 | E17: 6.5 | F17: 7 | H17: 14
A18: 15 | B18: 1 | C18: 61 | D18: 1022 | E18: 7.3 | F18: 7 | H18: 15
A19: 16 | B19: 1 | C19: 62 | D19: 1021.5 | E19: 8.3 | F19: 7 | H19: 16
A20: 17 | B20: 1 | C20: 61 | D20: 1021 | E20: 7.6 | F20: 7 | H20: 17
A21: 18 | B21: 1 | C21: 62 | D21: 1020.7 | E21: 7.9 | F21: 5 | H21: 18
A22: 19 | B22: 1 | C22: 66 | D22: 1020.6 | E22: 8.1 | F22: 7 | H22: 19
A23: 20 | B23: 0 | C23: 77 | D23: 1020.3 | E23: 9.6 | F23: 7 | H23: 20
A24: 21 | B24: 0 | C24: 78 | D24: 1020.6 | E24: 9.4 | F24: 8 | H24: 21
A25: 22 | B25: 0 | C25: 79 | D25: 1020.6 | E25: 9.5 | F25: 8 | H25: 22
A26: 23 | B26: 0 | C26: 81 | D26: 1020.4 | E26: 9.7 | F26: 8 | H26: 23
A27: Mittel | B27: =ROUND(AVERAGE(B3:B26),1) -> 0.8 | C27: =ROUND(AVERAGE(C3:C26),1) -> 76.5 | D27: =ROUND(AVERAGE(D3:D26),1) -> 1021.6 | E27: =AVERAGE(E3:E26) -> 7.9875 | F27: =ROUND(AVERAGE(F3:F26),1) -> 7.1 | H27: Mittel | I27: =ROUND(AVERAGE(I3:I26),1) -> 0.7 | J27: =ROUND(AVERAGE(J3:J26),1) -> 75.9 | K27: =ROUND(AVERAGE(K3:K26),1) -> 1019 | L27: =AVERAGE(L3:L26) -> 9.628571429 | M27: =ROUND(AVERAGE(M3:M26),1) -> 6.8
E29: 2013-06-30 | L29: 2013-07-01
A32: Stunde | B32: Wind | C32: Luftfeuchtigkeit | D32: Luftdruck | E32: Taupunkttemperatur | F32: Bewölkung | H32: Stunde | I32: Wind | J32: Luftfeuchtigkeit | K32: Luftdruck | L32: Taupunkttemperatur | M32: Bewölkung
A33: 00 | B33: 1 | C33: 95 | D33: 1022.3 | E33: 7.8 | F33: 6 | H33: 00 | I33: 0 | J33: 95 | K33: 1019.3 | L33: 9.5 | M33: 7
A34: 01 | B34: 0 | C34: 96 | D34: 1021.9 | E34: 7.1 | F34: 4 | H34: 01 | I34: 0 | J34: 96 | K34: 1019.1 | L34: 9.4 | M34: 7
A35: 02 | B35: 1 | C35: 96 | D35: 1021.6 | E35: 6.6 | F35: 4 | H35: 02 | I35: 0 | J35: 96 | K35: 1018.5 | L35: 9.6 | M35: 7
A36: 03 | B36: 0 | C36: 96 | D36: 1021.4 | E36: 6.4 | F36: 5 | H36: 03 | I36: 0 | J36: 96 | K36: 1018.2 | L36: 9.7 | M36: 8
A37: 04 | B37: 1 | C37: 96 | D37: 1021.3 | E37: 6.3 | F37: 7 | H37: 04 | I37: 0 | J37: 95 | K37: 1017.7 | L37: 9.8 | M37: 8
A38: 05 | B38: 0 | C38: 97 | D38: 1021.4 | E38: 6.9 | F38: 8 | H38: 05 | I38: 0 | J38: 95 | K38: 1017.6 | L38: 10 | M38: 8
A39: 06 | B39: 0 | C39: 96 | D39: 1021.4 | E39: 8 | F39: 8 | H39: 06 | I39: 0 | J39: 96 | K39: 1017.6 | L39: 10.4 | M39: 8
A40: 07 | B40: 1 | C40: 97 | D40: 1021.4 | E40: 9.4 | F40: 8 | H40: 07 | I40: 0 | J40: 97 | K40: 1017.3 | L40: 11 | M40: 8
A41: 08 | B41: 1 | C41: 94 | D41: 1021.2 | E41: 11.4 | F41: 8 | H41: 08 | I41: 0 | J41: 88 | K41: 1016.9 | L41: 11.6 | M41: 8
A42: 09 | B42: 1 | C42: 85 | D42: 1020.9 | E42: 12.1 | F42: 6 | H42: 09 | I42: 1 | J42: 78 | K42: 1016.6 | L42: 11.4 | M42: 8
A43: 10 | B43: 0 | C43: 78 | D43: 1020.8 | E43: 10.7 | F43: 7 | H43: 10 | I43: 1 | J43: 73 | K43: 1016.3 | L43: 11.7 | M43: 8
A44: 11 | B44: 0 | C44: 75 | D44: 1020.6 | E44: 10.8 | F44: 6 | H44: 11 | I44: 1 | J44: 69 | K44: 1016.2 | L44: 11 | M44: 8
A45: 12 | B45: 0 | C45: 72 | D45: 1020.3 | E45: 10.4 | F45: 7 | H45: 12 | I45: 1 | J45: 70 | K45: 1016 | L45: 11.9 | M45: 8
A46: 13 | B46: 0 | C46: 73 | D46: 1020.2 | E46: 11.3 | F46: 6 | H46: 13 | I46: 1 | J46: 66 | K46: 1015.2 | L46: 11.8 | M46: 8
A47: 14 | B47: 1 | C47: 72 | D47: 1019.7 | E47: 11.6 | F47: 6 | H47: 14 | I47: 1 | J47: 64 | K47: 1015.3 | L47: 10.8 | M47: 8
A48: 15 | B48: 0 | C48: 68 | D48: 1019.5 | E48: 10.8 | F48: 7 | H48: 15 | I48: 1 | J48: 70 | K48: 1015.6 | L48: 11.2 | M48: 8
A49: 16 | B49: 0 | C49: 74 | D49: 1019.3 | E49: 11.8 | F49: 7 | H49: 16 | I49: 1 | J49: 75 | K49: 1015.9 | L49: 11.7 | M49: 8
A50: 17 | B50: 1 | C50: 68 | D50: 1019.2 | E50: 10.1 | F50: 7 | H50: 17 | I50: 1 | J50: 88 | K50: 1016.3 | L50: 12.5 | M50: 8
A51: 18 | B51: 1 | C51: 79 | D51: 1018.9 | E51: 10.7 | F51: 7 | H51: 18 | I51: 0 | J51: 88 | K51: 1016.3 | L51: 13.2 | M51: 8
A52: 19 | B52: 0 | C52: 77 | D52: 1018.9 | E52: 11.2 | F52: 7 | H52: 19 | I52: 1 | J52: 85 | K52: 1016.5 | L52: 12.2 | M52: 8
A53: 20 | B53: 0 | C53: 85 | D53: 1019 | E53: 11.2 | F53: 7 | H53: 20 | I53: 1 | J53: 92 | K53: 1017 | L53: 12.2 | M53: 8
A54: 21 | B54: 1 | C54: 87 | D54: 1019.9 | E54: 10.6 | F54: 7 | H54: 21 | I54: 1 | J54: 97 | K54: 1018.1 | L54: 12.4 | M54: 8
A55: 22 | B55: 1 | C55: 93 | D55: 1019.9 | E55: 10.5 | F55: 7 | H55: 22 | I55: 1 | J55: 96 | K55: 1019.2 | L55: 11 | M55: 8
A56: 23 | B56: 0 | C56: 94 | D56: 1019.8 | E56: 9.5 | F56: 7 | H56: 23 | I56: 1 | J56: 96 | K56: 1020.4 | L56: 10.5 | M56: 8
A57: Mittel | B57: =ROUND(AVERAGE(B33:B56),1) -> 0.5 | C57: =ROUND(AVERAGE(C33:C56),1) -> 85.1 | D57: =ROUND(AVERAGE(D33:D56),1) -> 1020.5 | E57: =AVERAGE(E33:E56) -> 9.716666667 | F57: =ROUND(AVERAGE(F33:F56),1) -> 6.6 | H57: Mittel | I57: =ROUND(AVERAGE(I33:I56),1) -> 0.6 | J57: =ROUND(AVERAGE(J33:J56),1) -> 85.9 | K57: =ROUND(AVERAGE(K33:K56),1) -> 1017.2 | L57: =AVERAGE(L33:L56) -> 11.10416667 | M57: =ROUND(AVERAGE(M33:M56),1) -> 7.9
E59: 2013-06-28 | L59: 2013-06-29

Sheet Kurztabelle
A2: Wetterwarte: Köttewitz | L2: Monat: | M2: Juni | Y2: Jahr: | Z2: 2013
A4: Dat. | B4: TTT | C4: TxTx | D4: TnTn | E4: Tg | F4: Umin. | G4: UU | H4: NN | I4: RRRR | J4: Art | L4: sss | M4: PPPP | N4: eee | O4: fff | R4: Tage mit | V4: fk | W4: Summe
J5: * | O5: Bft | P5: SS | Q5: Art ( D ) | R5: RR | S5: Ge | T5: Bf6 | U5: Bf8 | V5: Bft | W5: Gewitter
A6: 01. | B6: 11.9 | C6: 15.3 | D6: 7.9 | E6: 7.8 | F6: 97 | G6: 98 | H6: 7.6 | I6: 28.8 | J6: R | L6: . | M6: 1005.8 | N6: 11.6 | O6: 1 | R6: 1 | V6: 4 | AA6: max >=30,0°C | AB6: max >=25,0°C | AC6: max <0,0°C | AE6: RR >=0,1 mm | AF6: RR >=1,0 mm | AG6: RR >=3,0 mm | AH6: RR >=10,0 mm
A7: 02. | B7: 9.9 | C7: 12.8 | D7: 8.5 | E7: 8.9 | F7: 97 | G7: 99 | H7: 8 | I7: 45.4 | J7: R | L7: . | M7: 1013.1 | N7: 9.8 | O7: 1 | R7: 1 | V7: 5 | AA7: =COUNTIF(C6:C15,">=30") -> 0 | AB7: =COUNTIF(C6:C15,">=25") -> 0 | AC7: =COUNTIF(C6:C15,"<0") -> 0 | AE7: =COUNTIF(I6:I15,">=0,1") -> 6 | AF7: =COUNTIF(I6:I15,">=1") -> 5 | AG7: =COUNTIF(I6:I15,">=3") -> 4 | AH7: =COUNTIF(I6:I15,">=10") -> 4
A8: 03. | B8: 8.6 | C8: 10.6 | D8: 7.1 | E8: 7.2 | F8: 93 | G8: 96 | H8: 7.9 | I8: 18 | J8: R | L8: . | M8: 1020.8 | N8: 8 | O8: 1 | R8: 1 | V8: 4 | AA8: =COUNTIF(C18:C27,">=30") -> 3 | AB8: =COUNTIF(C18:C27,">=25") -> 5 | AC8: =COUNTIF(C18:C27,"<0") -> 0 | AE8: =COUNTIF(I18:I27,">=0,1") -> 2 | AF8: =COUNTIF(I18:I27,">=1") -> 2 | AG8: =COUNTIF(I18:I27,">=3") -> 2 | AH8: =COUNTIF(I18:I27,">=10") -> 1
A9: 04. | B9: 11 | C9: 14.3 | D9: 8.9 | E9: 7.2 | F9: 90 | G9: 94 | H9: 6.7 | I9: 0.9 | J9: R | L9: 0.3 | M9: 1019.9 | N9: 10.1 | O9: 1 | R9: 1 | V9: 3 | AA9: =COUNTIF(C30:C39,">=30") -> 0 | AB9: =COUNTIF(C30:C39,">=25") -> 0 | AC9: =COUNTIF(C30:C39,"<0") -> 0 | AE9: =COUNTIF(I30:I39,">=0,1") -> 7 | AF9: =COUNTIF(I30:I39,">=1") -> 6 | AG9: =COUNTIF(I30:I39,">=3") -> 3 | AH9: =COUNTIF(I30:I39,">=10") -> 2
A10: 05. | B10: 13.3 | C10: 19.3 | D10: 6.2 | E10: 5.6 | F10: 46 | G10: 73 | H10: 2.3 | I10: . | L10: 12.8 | M10: 1020.4 | N10: 8.1 | O10: 1 | V10: 3
A11: 06. | B11: 14.7 | C11: 20.2 | D11: 9.6 | E11: 10 | F11: 67 | G11: 86 | H11: 5 | I11: . | L11: 3.3 | M11: 1021.3 | N11: 12.3 | O11: 1 | V11: 3 | AA11: min <0,0°C | AB11: min <0-10,0°C | AE11: rel.Lf. 14h >=70% | AG11: rel.Lf. 14h <=40%
A12: 07. | B12: 16.7 | C12: 23.6 | D12: 10.8 | E12: 10.6 | F12: 65 | G12: 87 | H12: 5.5 | I12: 1.1 | J12: R | L12: 6.3 | M12: 1020.2 | N12: 14.5 | O12: 1 | R12: 1 | S12: 1 | V12: 3 | AA12: =COUNTIF(D6:D15,"<0") -> 0 | AB12: =COUNTIF(D6:D15,"<=-10") -> 0 | AE12: =COUNTIF(F6:F15,">=70") -> 5 | AG12: =COUNTIF(F6:F15,"<=40") -> 0
A13: 08. | B13: 17 | C13: 22.8 | D13: 11.7 | E13: 12.2 | F13: 65 | G13: 87 | H13: 6.6 | I13: . | L13: 5.3 | M13: 1016.3 | N13: 14.7 | O13: 1 | S13: 1 | V13: 3 | AA13: =COUNTIF(D18:D27,"<0") -> 0 | AB13: =COUNTIF(D18:D27,"<=-10") -> 0 | AE13: =COUNTIF(F18:F27,">=70") -> 0 | AG13: =COUNTIF(F18:F27,"<=40") -> 1
A14: 09. | B14: 16.1 | C14: 20.9 | D14: 13.1 | E14: 13.9 | F14: 75 | G14: 92 | H14: 6.3 | I14: 17.2 | J14: R | L14: 3.3 | M14: 1009.9 | N14: 14.8 | O14: 1 | R14: 1 | S14: 1 | V14: 3 | W14: 2 | AA14: =COUNTIF(D30:D39,"<0") -> 0 | AB14: =COUNTIF(D30:D39,"<=-10") -> 0 | AE14: =COUNTIF(F30:F39,">=70") -> 3 | AG14: =COUNTIF(F30:F39,"<=40") -> 0
A15: 10. | B15: 14.4 | C15: 16.9 | D15: 13.1 | E15: 13.9 | F15: 65 | G15: 91 | H15: 7.3 | I15: . | L15: 0.3 | M15: 1009 | N15: 12.9 | O15: 1 | V15: 3
A16: Su | B16: =SUM(B6:B15) -> 133.6 | C16: =SUM(C6:C15) -> 176.7 | D16: =SUM(D6:D15) -> 96.9 | E16: =SUM(E6:E15) -> 97.3 | F16: XXX | G16: =SUM(G6:G15) -> 903 | H16: =SUM(H6:H15) -> 63.2 | I16: =SUM(I6:I15) -> 111.4 | J16: =SUM(K6:K15) -> 0 | L16: =SUM(L6:L15) -> 31.6 | M16: =SUM(M6:M15) -> 10156.7 | N16: =SUM(N6:N15) -> 116.8 | O16: =SUM(O6:O15) -> 10 | P16: =COUNT(P6:P15) -> 0 | Q16: X | R16: =SUM(R6:R15) -> 6 | S16: =SUM(S6:S15) -> 3 | T16: =SUM(T6:T15) -> 0 | U16: =SUM(U6:U15) -> 0 | V16: XXX | AA16: ohne Sonne | AB16: Son. 0,1-0,9 | AC16: Son. >=10,0 | AE16: Sch. >=1 cm | AF16: Sch. >=3 cm | AG16: Sch. >=10 cm
A17: Mi | B17: =SUM(B16/10) -> 13.36 | C17: =AVERAGE(C16/10) -> 17.67 | D17: =AVERAGE(D16/10) -> 9.69 | E17: =E16/10 -> 9.73 | F17: XXX | G17: =AVERAGE(G16/10) -> 90.3 | H17: =AVERAGE(H16/10) -> 6.32 | I17: XXXXX | J17: XX | L17: XXXX | M17: =AVERAGE(M16/10) -> 1015.67 | N17: =AVERAGE(N16/10) -> 11.68 | O17: =O16/10 -> 1 | P17: XXX | Q17: X | R17: XX | S17: XX | T17: XX | U17: XX | V17: =AVERAGE(V6:V15) -> 3.4 | AA17: =COUNTIF(L6:L15,".") -> 3 | AB17: =COUNTIF(L6:L15,"<1") -> 2 | AC17: =COUNTIF(L6:L15,">=10") -> 1 | AE17: =COUNTIF(P6:P15,">=1") -> 0 | AF17: =COUNTIF(P6:P15,">=3") -> 0 | AG17: =COUNTIF(P6:P15,">=10") -> 0
A18: 11. | B18: 15.2 | C18: 20.9 | D18: 9.2 | E18: 8.9 | F18: 44 | G18: 74 | H18: 3.2 | I18: . | L18: 10.7 | M18: 1015.5 | N18: 10.2 | O18: 1 | V18: 3 | AA18: =COUNTIF(L18:L27,".") -> 0 | AB18: =COUNTIF(L18:L27,"<1") -> 0 | AC18: =COUNTIF(L18:L27,">=10") -> 6 | AE18: =COUNTIF(P18:P27,">=1") -> 0 | AF18: =COUNTIF(P18:P27,">=3") -> 0 | AG18: =COUNTIF(P18:P27,">=10") -> 0
A19: 12. | B19: 17 | C19: 23.6 | D19: 9.1 | E19: 8.9 | F19: 39 | G19: 70 | H19: 2.6 | I19: . | L19: 11 | M19: 1019.5 | N19: 10.8 | O19: 1 | V19: 2 | AA19: =COUNTIF(L30:L39,".") -> 4 | AB19: =COUNTIF(L30:L39,"<1") -> 1 | AC19: =COUNTIF(L30:L39,">=10") -> 1 | AE19: =COUNTIF(P30:P39,">=1") -> 0 | AF19: =COUNTIF(P30:P39,">=3") -> 0 | AG19: =COUNTIF(P30:P39,">=10") -> 0
A20: 13. | B20: 19.9 | C20: 26.1 | D20: 12.2 | E20: 11.7 | F20: 51 | G20: 68 | H20: 4.6 | I20: 4 | J20: R | L20: 7.2 | M20: 1016.2 | N20: 13.6 | O20: 1 | R20: 1 | V20: 3
A21: 14. | B21: 15.7 | C21: 19.8 | D21: 10.8 | E21: 10.6 | F21: 50 | G21: 74 | H21: 6 | I21: . | L21: 5.1 | M21: 1018.4 | N21: 10.9 | O21: 1 | V21: 4 | AA21: Max TT | AB21: Max TxTx | AC21: Min TgTg | AE21: Max RR
A22: 15. | B22: 16.9 | C22: 23.1 | D22: 7.9 | E22: 7.8 | F22: 50 | G22: 74 | H22: 5.2 | I22: . | L22: 8.2 | M22: 1015.5 | N22: 11.8 | O22: 1 | V22: 3 | AA22: =MAX(B6:B15,B18:B27,B30:B39) -> 25.8 | AB22: =MAX(C6:C15,C18:C27,C30:C39) -> 33.2 | AC22: =MIN(E6:E15,E18:E27,E30:E39) -> 5.6 | AE22: =MAX(I6:I15,I18:I27,I30:I39) -> 45.4
A23: 16. | B23: 18.2 | C23: 23.3 | D23: 12.9 | E23: 12.8 | F23: 46 | G23: 64 | H23: 5.2 | I23: . | L23: 9 | M23: 1016.1 | N23: 11.1 | O23: 1 | V23: 3 | AA23: Min TT | AB23: Min TnTn | AC23: Min U14 | AE23: Max SS
A24: 17. | B24: 19.8 | C24: 27.2 | D24: 10.9 | E24: 11.1 | F24: 53 | G24: 77 | H24: 5.1 | I24: . | L24: 10 | M24: 1016.4 | N24: 15.3 | O24: 1 | V24: 3 | AA24: =MIN(B6:B15,B18:B27,B30:B39) -> 8.6 | AB24: =MIN(D6:D15,D18:D27,D30:D39) -> 6.2 | AC24: =MIN(F6:F15,F18:F27,F30:F39) -> 39 | AE24: =MAX(P6:P15,P18:P27,P30:P39) -> 0
A25: 18. | B25: 24.6 | C25: 30.6 | D25: 17.1 | E25: 17.2 | F25: 55 | G25: 76 | H25: 2.2 | I25: . | L25: 15.2 | M25: 1014.7 | N25: 19.8 | O25: 1 | V25: 2
A26: 19. | B26: 25.8 | C26: 32.2 | D26: 18.5 | E26: 18.3 | F26: 51 | G26: 77 | H26: 1 | I26: . | L26: 15.2 | M26: 1014.5 | N26: 20.9 | O26: 0 | V26: 2
A27: 20. | B27: 25.8 | C27: 33.2 | D27: 17.2 | E27: 17.8 | F27: 53 | G27: 76 | H27: 3.2 | I27: 45.1 | J27: R | L27: 12 | M27: 1010.4 | N27: 21 | O27: 1 | R27: 1 | S27: 1 | V27: 5
A28: Su | B28: =SUM(B18:B27) -> 198.9 | C28: =SUM(C18:C27) -> 260 | D28: =SUM(D18:D27) -> 125.8 | E28: =SUM(E18:E27) -> 125.1 | F28: XXX | G28: =SUM(G18:G27) -> 730 | H28: =SUM(H18:H27) -> 38.3 | I28: =SUM(I18:I27) -> 49.1 | J28: =SUM(K18:K27) -> 0 | L28: =SUM(L18:L27) -> 103.6 | M28: =SUM(M18:M27) -> 10157.2 | N28: =SUM(N18:N27) -> 145.4 | O28: =SUM(O18:O27) -> 9 | P28: =COUNT(P18:P27) -> 0 | Q28: X | R28: =SUM(R18:R27) -> 2 | S28: =SUM(S18:S27) -> 1 | T28: =SUM(T18:T27) -> 0 | U28: =SUM(U18:U27) -> 0 | V28: XXX
A29: Mi | B29: =AVERAGE(B28/10) -> 19.89 | C29: =AVERAGE(C28/10) -> 26 | D29: =AVERAGE(D28/10) -> 12.58 | E29: =AVERAGE(E28/10) -> 12.51 | F29: XXX | G29: =AVERAGE(G28/10) -> 73 | H29: =AVERAGE(H28/10) -> 3.83 | I29: XXXXX | J29: XX | L29: XXXX | M29: =AVERAGE(M28/10) -> 1015.72 | N29: =AVERAGE(N28/10) -> 14.54 | O29: =O28/10 -> 0.9 | P29: XXX | Q29: X | R29: XX | S29: XX | T29: XX | U29: XX | V29: =AVERAGE(V18:V27) -> 3
A30: 21. | B30: 20 | C30: 24.9 | D30: 15.9 | E30: 15.6 | F30: 52 | G30: 76 | H30: 4.2 | I30: . | L30: 10.2 | M30: 1012.9 | N30: 15.3 | O30: 1 | V30: 3
A31: 22. | B31: 19.5 | C31: 24.3 | D31: 13.8 | E31: 13.3 | F31: 52 | G31: 73 | H31: 3.3 | I31: . | L31: 9.7 | M31: 1015.4 | N31: 14.4 | O31: 1 | V31: 3
A32: 23. | B32: 18.2 | C32: 23.1 | D32: 13.6 | E32: 12.8 | F32: 50 | G32: 75 | H32: 4.8 | I32: 1.3 | J32: R | L32: 4.7 | M32: 1013.1 | N32: 13.4 | O32: 1 | R32: 1 | V32: 3
A33: 24. | B33: 15.2 | C33: 17.9 | D33: 11.6 | E33: 13.3 | F33: 70 | G33: 85 | H33: 7.8 | I33: 24.9 | J33: R | L33: . | M33: 1017.3 | N33: 12.6 | O33: 0 | R33: 1 | V33: 2
A34: 25. | B34: 11.3 | C34: 13.2 | D34: 10 | E34: 10 | F34: 95 | G34: 96 | H34: 8 | I34: 29.4 | J34: R | L34: . | M34: 1019.4 | N34: 10.9 | O34: 1 | R34: 1 | V34: 4
A35: 26. | B35: 10.7 | C35: 12.8 | D35: 8.9 | E35: 9.4 | F35: 71 | G35: 86 | H35: 7.8 | I35: 0.9 | J35: R | L35: . | M35: 1022.9 | N35: 8.3 | O35: 1 | R35: 1 | V35: 4
A36: 27. | B36: 11.8 | C36: 17.4 | D36: 8.6 | E36: 8.3 | F36: 55 | G36: 83 | H36: 7 | I36: 1.6 | J36: R | L36: 0.6 | M36: 1023.5 | N36: 8.9 | O36: 1 | R36: 1 | V36: 2
A37: 28. | B37: 12.3 | C37: 18.4 | D37: 6.7 | E37: 6.7 | F37: 62 | G37: 85 | H37: 6.6 | I37: 1.1 | J37: R | L37: 1 | M37: 1020.5 | N37: 9.7 | O37: 1 | R37: 1 | V37: 2
A38: 29. | B38: 13.6 | C38: 18.5 | D38: 9.9 | E38: 11.1 | F38: 62 | G38: 86 | H38: 7.9 | I38: 6.3 | J38: R | L38: . | M38: 1017.2 | N38: 11.1 | O38: 1 | R38: 1 | V38: 3
A39: 30. | B39: 12.3 | C39: 16.2 | D39: 8.2 | E39: 8.3 | F39: 58 | G39: 76 | H39: 7.1 | I39: . | L39: 3.8 | M39: 1021.6 | N39: 8 | O39: 1 | V39: 3
A40: Su | B40: =SUM(B30:B39) -> 144.9 | C40: =SUM(C30:C39) -> 186.7 | D40: =SUM(D30:D39) -> 107.2 | E40: =SUM(E30:E39) -> 108.8 | F40: XXX | G40: =SUM(G30:G39) -> 821 | H40: =SUM(H30:H39) -> 64.5 | I40: =SUM(I30:I39) -> 65.5 | J40: =SUM(K30:K39) -> 0 | L40: =SUM(L30:L39) -> 30 | M40: =SUM(M30:M39) -> 10183.8 | N40: =SUM(N30:N39) -> 112.6 | O40: =SUM(O30:O39) -> 9 | P40: =COUNT(P30:P39) -> 0 | Q40: X | R40: =SUM(R30:R39) -> 7 | S40: =SUM(S30:S39) -> 0 | T40: =SUM(T30:T39) -> 0 | U40: =SUM(U30:U39) -> 0 | V40: XXX
A41: Mi | B41: =AVERAGE(B40/10) -> 14.49 | C41: =AVERAGE(C40/10) -> 18.67 | D41: 10.72 | E41: 10.88 | F41: XXX | G41: =AVERAGE(G40/10) -> 82.1 | H41: =AVERAGE(H40/10) -> 6.45 | I41: XXXXX | J41: XX | L41: XXXX | M41: =AVERAGE(M40/10) -> 1018.38 | N41: =AVERAGE(N40/10) -> 11.26 | O41: 0.9 | P41: XXX | Q41: X | R41: XX | S41: XX | T41: XX | U41: XX | V41: =AVERAGE(V30:V39) -> 2.9
A42: MSu | B42: =SUM(B16+B28+B40) -> 477.4 | C42: =SUM(C16+C28+C40) -> 623.4 | D42: =SUM(D16+D28+D40) -> 329.9 | E42: =SUM(E16+E28+E40) -> 331.2 | F42: XXX | G42: =SUM(G16+G28+G40) -> 2454 | H42: =SUM(H16+H28+H40) -> 166 | I42: =SUM(I16+I28+I40) -> 226 | J42: =SUM(J16+J28+J40) -> 0 | L42: =SUM(L16+L28+L40) -> 165.2 | M42: =SUM(M16+M28+M40) -> 30497.7 | N42: =SUM(N16+N28+N40) -> 374.8 | O42: XXX | P42: =SUM(P16+P28+P40) -> 0 | Q42: X | R42: =SUM(R16+R28+R40) -> 15 | S42: =SUM(S16+S28+S40) -> 4 | T42: =SUM(T16+T28+T40) -> 0 | U42: =SUM(U16+U28+U40) -> 0 | V42: XXX
A43: MMi | B43: =AVERAGE(B17,B29,B41) -> 15.91333333 | C43: =AVERAGE(C42/30) -> 20.78 | D43: =AVERAGE(D42/30) -> 10.99666667 | E43: =AVERAGE(E42/30) -> 11.04 | F43: XXX | G43: =AVERAGE(G42/30) -> 81.8 | H43: =AVERAGE(H42/30) -> 5.533333333 | I43: XXXXX | J43: XX | L43: XXXX | M43: =AVERAGE(M42/30) -> 1016.59 | N43: =AVERAGE(N42/30) -> 12.49333333 | P43: XXX | Q43: X | R43: XX | S43: XX | T43: XX | U43: XX | V43: =AVERAGE(V17,V29,V41) -> 3.1
B45: Norm | C45: % v N.- | D45: Abw. | E45: Zahl der Tage | L45: Niederschlag mm | P45: Sonnensch.-dauer Std
B46: wert | C46: wert | D46: K | E46: Max.d.Lufttemp.°C | L46: >/= 0,1 | O46: =SUM(AE7:AE9) -> 15 | P46: ohne Sonne | V46: 7
A47: TTT | B47: 16.4 | C47: XXXX | D47: =SUM(B43-B47) -> -0.4866666667 | E47: Tropentag/Hitzetag | I47: =SUM(AA7:AA9) -> 3 | L47: >/= 1,0 | O47: =SUM(AF7:AF9) -> 13 | P47: 0,1 bis 0,9 | V47: 2
A48: RRR | B48: 62 | C48: =SUM(I42*100/B48) -> 364.516129 | D48: XXXX | E48: Sommertag | I48: =SUM(AB7:AB9) -> 5 | L48: >/= 3,0 | O48: =SUM(AG7:AG9) -> 9 | P48: >/= 10,0 | V48: =SUM(AC17:AC19) -> 8
A49: sss | B49: 214 | C49: =SUM(L42*100/B49) -> 77.19626168 | D49: XXXX | E49: Eistag | I49: =SUM(AC7:AC9) -> 0 | L49: >/=10,0 | O49: =SUM(AH7:AH9) -> 7 | P49: Schneedecke cm
A50: astr. | D50: XXXX | E50: Min.d.Lufttemp.°C | L50: >/= 20,0 | O50: 5 | P50: >/= 1 | V50: =SUM(AE17:AE19) -> 0
A51: mgl. | B51: 487 | C51: =SUM(L42*100/B51) -> 33.92197125 | D51: XXXX | E51: Frosttag | I51: =SUM(AA12:AA14) -> 0 | L51: Rel. Luftfeuchte 14 Uhr | P51: >/= 3 | V51: =SUM(AF17:AF19) -> 0
A52: sss | D52: XXXX | E52: starker Eistag | I52: =SUM(AB12:AB14) -> 0 | L52: >/=70% | O52: =SUM(AE12:AE14) -> 8 | P52: >/= 10 | V52: =SUM(AG17:AG19) -> 0
L53: </=40% | O53: =SUM(AG12:AG14) -> 1

Sheet Sichtst.
E1: Sichtweitenstatistik
B5: Wetterstation: Köttewitz | F5: Monat: | G5: Juni | K5: Jahr: | L5: 2013
A7: Dat. | B7: Nebeldauer | C7: Nebel | D7: Dunst | E7: Sicht | F7: Sicht | G7: Sicht | H7: Sicht
B8: in St. u. Min. | E8: mittel | F8: normal | G8: gut | H8: sehr gut
A9: 01. | B9: - | C9: =IF(R9=1,1,"-") -> - | D9: 1 | E9: 1 | F9: 1 | G9: - | H9: - | N9: =IF(ISNUMBER(B9),B9*24," ") ->  | O9: =IF(ISNUMBER(N9),IF(N9<1,1," ")," ") ->  | P9: =IF(ISNUMBER(N9),IF(N9<8,2," ")," ") ->  | Q9: =IF(ISNUMBER(N9),IF(N9<24,3," ")," ") ->  | R9: =MIN(O9:Q9) -> 0
A10: 02. | B10: - | C10: - | D10: 1 | E10: 1 | F10: - | G10: - | H10: - | R10: 0
A11: 03. | B11: - | C11: - | D11: 1 | E11: 1 | F11: 1 | G11: - | H11: - | R11: 0
A12: 04. | B12: - | C12: - | D12: - | E12: 1 | F12: 1 | G12: 1 | H12: - | R12: 0
A13: 05. | B13: - | C13: - | D13: - | E13: - | F13: 1 | G13: 1 | H13: 1 | R13: 0
A14: 06. | B14: - | C14: - | D14: - | E14: - | F14: 1 | G14: - | H14: - | R14: 0
A15: 07. | B15: - | C15: - | D15: - | E15: - | F15: 1 | G15: - | H15: - | R15: 0
A16: 08. | B16: - | C16: - | D16: - | E16: 1 | F16: 1 | G16: - | H16: - | R16: 0
A17: 09. | B17: - | C17: - | D17: 1 | E17: 1 | F17: - | G17: - | H17: - | R17: 0
A18: 10. | B18: - | C18: - | D18: 1 | E18: 1 | F18: 1 | G18: 1 | H18: - | R18: 0
A19: 11. | B19: - | C19: - | D19: - | E19: - | F19: 1 | G19: 1 | H19: - | R19: 0
A20: 12. | B20: - | C20: - | D20: - | E20: - | F20: 1 | G20: 1 | H20: - | R20: 0
A21: 13. | B21: - | C21: - | D21: - | E21: - | F21: 1 | G21: 1 | H21: - | R21: 0
A22: 14. | B22: - | C22: - | D22: - | E22: - | F22: 1 | G22: - | H22: - | R22: 0
A23: 15. | B23: - | C23: - | D23: - | E23: - | F23: 1 | G23: 1 | H23: - | R23: 0
A24: 16. | B24: - | C24: - | D24: - | E24: - | F24: 1 | G24: 1 | H24: - | R24: 0
A25: 17. | B25: - | C25: - | D25: - | E25: - | F25: 1 | G25: 1 | H25: - | R25: 0
A26: 18. | B26: - | C26: - | D26: - | E26: - | F26: 1 | G26: - | H26: - | R26: 0
A27: 19. | B27: - | C27: - | D27: - | E27: 1 | F27: 1 | G27: - | H27: - | R27: 0
A28: 20. | B28: 01:30:00 | C28: 1 | D28: 1 | E28: 1 | F28: 1 | G28: - | H28: - | N28: 1.5 | P28: 2 | Q28: 3 | R28: 2
A29: 21. | B29: - | C29: - | D29: - | E29: 1 | F29: 1 | G29: 1 | H29: - | R29: 0
A30: 22. | B30: - | C30: - | D30: - | E30: - | F30: 1 | G30: 1 | H30: - | R30: 0
A31: 23. | B31: - | C31: - | D31: - | E31: - | F31: 1 | G31: 1 | H31: - | R31: 0
A32: 24. | B32: - | C32: - | D32: - | E32: 1 | F32: 1 | G32: - | H32: - | R32: 0
A33: 25. | B33: - | C33: - | D33: - | E33: 1 | F33: - | G33: - | H33: - | R33: 0
A34: 26. | B34: - | C34: - | D34: - | E34: 1 | F34: 1 | G34: - | H34: - | R34: 0
A35: 27. | B35: - | C35: - | D35: - | E35: - | F35: 1 | G35: - | H35: - | R35: 0
A36: 28. | B36: - | C36: - | D36: 1 | E36: 1 | F36: 1 | G36: - | H36: - | R36: 0
A37: 29. | B37: - | C37: - | D37: 1 | E37: 1 | F37: 1 | G37: - | H37: - | R37: 0
A38: 30. | B38: - | C38: - | D38: - | E38: - | F38: 1 | G38: 1 | H38: - | R38: 0
A39: Su. | B39: XXXXXXXXX | C39: =SUM(C9:C38) -> 1 | D39: 8 | E39: 15 | F39: 27 | G39: 13 | H39: 1
B41: Anzahl der Nebeltage : | E41: =SUM(C39) -> 1
B42: Anzahl der Tage Sicht >= 50 km : | E42: =SUM(G39) -> 13

Sheet Monatsdiagramm
A1: Klimadiagramm | C1: Wetterstation Köttewitz | I1: (213 m ü. NHN)
A3: Juni 2013
C5: aktuell | D5: langj. Mittel | E5: Abw. vom lj. Mittel
B6: höchste Temperatur (°C): | C6: =MAX('Daten für Diagr.'!C2:C29) -> 33.2 | D6: am | E6: 2013-06-20
B7: mittlere Temperatur (°C): | C7: ='Daten für Diagr.'!B32 -> 15.91333333 | D7: =Kurztabelle!B47 -> 16.4 | E7: =C7-D7 -> -0.4866666667 | F7: K
B8: tiefste Temperatur (°C): | C8: =MIN('Daten für Diagr.'!D2:D29) -> 6.2 | D8: am | E8: 2013-06-05
B9: Niederschlagshöhe (mm): | C9: =Kurztabelle!I42 -> 226 | D9: =Kurztabelle!B48 -> 62 | E9: =100/D9*C9 -> 364.516129 | F9: %
B10: Sonnenscheindauer (Std.)*: | C10: =Kurztabelle!L42 -> 165.2 | D10: =Kurztabelle!B49 -> 214 | E10: =100/D10*C10 -> 77.19626168 | F10: %
A66: *Die Wetterstation kann, durch geographische Hindernisse, nicht die maximal mögliche Sonnenscheindauer aufzeichnen. Es gilt ein Übergangsprozentsatz von: Nov - Feb 50 %; Mär & Okt 65 %; Apr & Sep 80 %; Mai - August 90 %.
A67: Diese Werte entsprechend annähernd 100 % (Normalwert Köttewitz). Nach 10 Jahren erfolgt die Umstellung des Prozentsatzes nach der örtlichen Aufzeichnung.

Sheet Daten für Diagr.
B1: Td | C1: Tmax | D1: Tmin | E1: RR | F1: Schnee | G1: Sonne | H1: Luftdr. | I1: MWT | J1: GWL | K1: Name | L1: Sonstiges
A2: 2013-06-01 | B2: 11.9 | C2: 15.3 | D2: 7.9 | E2: 28.8 | H2: 1005.8 | I2: 13.85 | L2: Von 10:50 Uhr - 12:19 Uhr starker Dunst. Von 06:40 Uhr - 10:49 Uhr; 12:20 Uhr - 13:19 Uhr; Von 20:20 Uhr - 23:59 Uhr mäßiger Dunst. Von 13:20 Uhr - 15:19 Uhr leichter Dunst. Von 06:40 Uhr - 10:49 Uhr; Von 20:20 Uhr - 23:59 Uhr Sichteinschränkung durch Starkniederschlag.
A3: 2013-06-02 | B3: 9.9 | C3: 12.8 | D3: 8.5 | E3: 45.4 | H3: 1013.1 | I3: 14 | L3: Von 00:00 Uhr - 08:59 Uhr mäßiger Dunst. Von 09:00 Uhr - Uhr leichter Dunst. Von 00:00 Uhr - 08:59 Uhr; 09:39 Uhr - Uhr Sichteinschränkung durch Starkniederschlag.
A4: 2013-06-03 | B4: 8.6 | C4: 10.6 | D4: 7.1 | E4: 18 | H4: 1020.8 | I4: 14.2
A5: 2013-06-04 | B5: 11 | C5: 14.3 | D5: 8.9 | E5: 0.9 | G5: 0.3 | H5: 1019.9 | I5: 14.35 | J5: HNFz | K5: H Sabine
A6: 2013-06-05 | B6: 13.3 | C6: 19.3 | D6: 6.2 | G6: 12.8 | H6: 1020.4 | I6: 14.55 | K6: H Therese
A7: 2013-06-06 | B7: 14.7 | C7: 20.2 | D7: 9.6 | G7: 3.3 | H7: 1021.3 | I7: 14.75 | L7: Beginn der Himbeerblüte.
A8: 2013-06-07 | B8: 16.7 | C8: 23.6 | D8: 10.8 | G8: 6.3 | H8: 1020.2 | I8: 14.95 | J8: TrW | L8: Mäßig schwül.
A9: 2013-06-08 | B9: 17 | C9: 22.8 | D9: 11.7 | G9: 5.3 | H9: 1016.3 | I9: 15.15 | J9: TrM | L9: Mäßig schwül.
A10: 2013-06-09 | B10: 16.1 | C10: 20.9 | D10: 13.1 | E10: 17.2 | G10: 3.3 | H10: 1009.9 | I10: 15.35 | J10: Wz | K10: T Ira | L10: Mäßig schwül. Von 20:20 Uhr - 23:59 Uhr leichter Dunst.
A11: 2013-06-10 | B11: 14.4 | C11: 16.9 | D11: 13.1 | G11: 0.3 | H11: 1009 | I11: 15.55 | L11: Von 06:30 Uhr - 07:19 Uhr starker Dunst. Von 03:00 Uhr - 06:29 Uhr; 07:30 Uhr - 08:39 Uhr mäßiger Dunst. Von 00:00 Uhr - 02:59 Uhr leichter Dunst.
A12: 2013-06-11 | B12: 15.2 | C12: 20.9 | D12: 9.2 | G12: 10.7 | H12: 1015.5 | I12: 15.75 | J12: Ww | K12: H Therese | L12: Beginn des phänologischen Frühsommers.
A13: 2013-06-12 | B13: 17 | C13: 23.6 | D13: 9.1 | G13: 11 | H13: 1019.5 | I13: 15.95 | L13: Beginn der Klatschmohnblüte.
A14: 2013-06-13 | B14: 19.9 | C14: 26.1 | D14: 12.2 | E14: 4 | G14: 7.2 | H14: 1016.2 | I14: 16.15 | J14: SWz | K14: T Jörn
A15: 2013-06-14 | B15: 15.7 | C15: 19.8 | D15: 10.8 | G15: 5.1 | H15: 1018.4 | I15: 16.35 | J15: Wz | K15: T Karl-Heinz | L15: Leicht schwül.
A16: 2013-06-15 | B16: 16.9 | C16: 23.1 | D16: 7.9 | G16: 8.2 | H16: 1015.5 | I16: 16.55
A17: 2013-06-16 | B17: 18.2 | C17: 23.3 | D17: 12.9 | G17: 9 | H17: 1016.1 | I17: 16.7 | J17: TrW
A18: 2013-06-17 | B18: 19.8 | C18: 27.2 | D18: 10.9 | G18: 10 | H18: 1016.4 | I18: 16.9 | J18: Sa | K18: H Velvet | L18: Stark schwül.
A19: 2013-06-18 | B19: 24.6 | C19: 30.6 | D19: 17.1 | G19: 15.2 | H19: 1014.7 | I19: 17.15 | K19: H Uta | L19: Extrem schwül.
A20: 2013-06-19 | B20: 25.8 | C20: 32.2 | D20: 18.5 | G20: 15.2 | H20: 1014.5 | I20: 17.3 | L20: Extrem schwül.
A21: 2013-06-20 | B21: 25.8 | C21: 33.2 | D21: 17.2 | E21: 45.1 | G21: 12 | H21: 1010.4 | I21: 17.35 | J21: TrW | K21: T Norbert | L21: Extrem schwül. | N21: Beginn der Gelbreife bei Gerste. | Q21: Nacht zu heute Tropennacht (20,8 °C). | T21: Von 21:40 Uhr - 23:09 Uhr leichter Nebel. Von 21:40 Uhr - 22:19 Uhr Sichteinschränkung durch Starkniederschlag.
A22: 2013-06-21 | B22: 20 | C22: 24.9 | D22: 15.9 | G22: 10.2 | H22: 1012.9 | I22: 17.45 | L22: Mäßig schwül.
A23: 2013-06-22 | B23: 19.5 | C23: 24.3 | D23: 13.8 | G23: 9.7 | H23: 1015.4 | I23: 17.5 | K23: T Othello | L23: Leicht schwül.
A24: 2013-06-23 | B24: 18.2 | C24: 23.1 | D24: 13.6 | E24: 1.3 | G24: 4.7 | H24: 1013.1 | I24: 17.55 | L24: Leicht schwül.
A25: 2013-06-24 | B25: 15.2 | C25: 17.9 | D25: 11.6 | E25: 24.9 | G25: 0 | H25: 1017.3 | I25: 17.6 | L25: Beginn des phänologischen Hochsommers.
A26: 2013-06-25 | B26: 11.3 | C26: 13.2 | D26: 10 | E26: 29.4 | G26: 0 | H26: 1019.4 | I26: 17.65 | J26: Sez | K26: T Petar | L26: Beginn der Sommerlindenblüte.
A27: 2013-06-26 | B27: 10.7 | C27: 12.8 | D27: 8.9 | E27: 0.9 | G27: 0 | H27: 1022.9 | I27: 17.7 | J27: TrM
A28: 2013-06-27 | B28: 11.8 | C28: 17.4 | D28: 8.6 | E28: 1.6 | G28: 0.6 | H28: 1023.5 | I28: 17.75 | L28: Beginn der Kartoffelblüte.
A29: 2013-06-28 | B29: 12.3 | C29: 18.4 | D29: 6.7 | E29: 1.1 | G29: 1 | H29: 1020.5 | I29: 17.8
A30: 2013-06-29 | B30: 13.6 | C30: 18.5 | D30: 9.9 | E30: 6.3 | G30: 0 | H30: 1017.2 | I30: 17.85 | J30: NWz | L30: Von 20:00 Uhr - 23:59 Uhr mäßiger Dunst. Von 19:50 Uhr - 19:59 Uhr leichter Dunst. Von 19:50 Uhr - 23:29 Uhr Sichteinschränkung durch Niederschlag.
A31: 2013-06-30 | B31: 12.3 | C31: 16.2 | D31: 8.2 | G31: 3.8 | H31: 1021.6 | I31: 17.9 | L31: Von 00:00 Uhr - 00:39 Uhr leichter Dunst.
A32: Durchschnitt | B32: =AVERAGE(B2:B31) -> 15.91333333 | C32: =AVERAGE(C2:C31) -> 20.78 | D32: =AVERAGE(D2:D31) -> 10.99666667 | H32: =AVERAGE(H2:H31) -> 1016.59 | I32: =AVERAGE(I2:I31) -> 16.32
A33: Mittel | B33: 16.4 | E33: 62 | F33: - | G33: 214 | H33: 1015.6
A89: 1
A90: 2
A91: 3
A92: 4
A93: 5
A94: 6
A95: 7
A96: 8
A97: 9
A98: 10
A99: 11
A100: 12
A101: 13
A102: 14
A103: 15
A104: 16
A105: 17
A106: 18
A107: 19
A108: 20
A109: 21
A110: 22
A111: 23
A112: 24
A113: 25
A114: 26
A115: 27
A116: 28
A117: 29
A118: 30
A119: 31
